[Event "11th Arad Open 2018"]
[Site "Arad"]
[Date "2018.08.10"]
[Round "7"]
[White "Dobre, Claudiu-Cristian"]
[Black "Ghimpu, Samuel-Timotei"]
[Result "1/2-1/2"]
[ECO "A16"]
[WhiteElo "2356"]
[BlackElo "2184"]
[Annotator "NA"]
[PlyCount "97"]
[EventDate "2018.08.05"]
[EventType "swiss"]
[EventCountry "ROU"]
[SourceTitle "playchess.com"]
[Source "ChessBase"]
[SourceQuality "1"]
[TimeControl "40/5400+30:1800+30"]

1. c4 {[%emt 0:00:00]} Nf6 {[%emt 0:00:21]} 2. Nc3 {[%emt 0:00:00]} c5 {[%emt 0:00:31]} 3. Nf3 {[%emt 0:00:00]} g6 {[%emt 0:00:24]} 4. e4 {[%emt 0:00:03]} Bg7 {[%emt 0:02:49]} 5. d4 {[%emt 0:00:48]} cxd4 {[%emt 0:00:14]} 6. Nxd4 {[%emt 0:00:13]} d6 {[%emt 0:00:43]} 7. Be2 {[%emt 0:00:21]} O-O {[%emt 0:00:41]} 8. Be3 {[%emt 0:01:06]} Nc6 {[%emt 0:00:57]} 9. O-O {[%emt 0:00:37]} Bd7 {[%emt 0:01:29]} 10. Qd2 {[%emt 0:00:59]} Nxd4 {[%emt 0:02:00]} 11. Bxd4 {[%emt 0:00:12]} Bc6 {[%emt 0:00:49]} 12. f3 {[%emt 0:00:51]} a5 {[%emt 0:00:11]} 13. b3 {[%emt 0:26:06]} Nd7 {[%emt 0:00:23]} 14. Be3 {[%emt 0:00:14]} Nc5 {[%emt 0:00:52]} 15. Rac1 {[%emt 0:00:45]} Be5 {[%emt 0:07:03]} 16. Bg5 {[%emt 0:15:40]} Qb6 {[%emt 0:12:42]} 17. Kh1 {[%emt 0:01:02]} Rfe8 {[%emt 0:06:14]} 18. Nd5 {[%emt 0:04:10]} Qd8 {[%emt 0:17:01]} 19. Qc2 {[%emt 0:17:33]} Ne6 {[%emt 0:04:12]} 20. Bd2 {[%emt 0:03:36]} Nc5 {[%emt 0:06:44]} 21. f4 {[%emt 0:02:36]} Bd4 {[%emt 0:00:36]} 22. Bf3 {[%emt 0:00:49]} e6 {[%emt 0:01:12]} 23. Nc3 {[%emt 0:00:36]} e5 {[%emt 0:03:09]} 24. Ne2 {[%emt 0:01:58]} Qf6 {[%emt 0:01:34]} 25. Rcd1 {[%emt 0:06:21]} Re7 {[%emt 0:05:02]} 26. Bc1 {[%emt 0:00:57]} Rae8 {[%emt 0:01:53]} 27. Qb1 {[%emt 0:08:21]} Nd7 {[%emt 0:05:53]} 28. f5 {[%emt 0:04:47]} Nc5 {[%emt 0:06:35]} 29. Ng3 {[%emt 0:01:40]} b5 {[%emt 0:00:09]} 30. cxb5 {[%emt 0:00:29]} Bxb5 {[%emt 0:00:16]} 31. Be2 {[%emt 0:00:04]} Bxe2 {[%emt 0:03:13]} 32. Nxe2 {[%emt 0:00:05]} Qh4 {[%emt 0:00:05]} 33. Nxd4 {[%emt 0:02:39]} exd4 {[%emt 0:00:01]} 34. Rxd4 {[%emt 0:00:29]} Rxe4 {[%emt 0:07:59]} 35. Rxe4 {[%emt 0:00:21]} Qxe4 {[%emt 0:00:02]} 36. fxg6 {[%emt 0:00:40]} hxg6 {[%emt 0:00:21]} 37. Qxe4 {[%emt 0:00:24]} Rxe4 {[%emt 0:00:05]} 38. Bd2 {[%emt 0:00:35]} Re2 {[%emt 0:00:17]} 39. Bxa5 {[%emt 0:00:10]} Rxa2 {[%emt 0:00:06]} 40. Bc7 {[%emt 0:00:00]} d5 {[%emt 0:00:00]} 41. b4 {[%emt 0:22:19]} Na6 {[%emt 0:20:27]} 42. Bd6 {[%emt 0:00:16]} Rb2 {[%emt 0:00:34]} 43. h4 {[%emt 0:02:30]} Nxb4 {[%emt 0:01:28]} 44. Rd1 {[%emt 0:00:33]} f6 {[%emt 0:01:13]} 45. Rd4 Nc6 46. Rd1 Nb4 47. Rd4 Nc2 48. Rxd5 Nb4 49. Rd1 1/2-1/2

[Event "11th Arad Open 2018"]
[Site "Arad"]
[Date "2018.08.10"]
[Round "7"]
[White "Toma, Radu-Cristian"]
[Black "Lupu, Ovidiu-Jean"]
[Result "1-0"]
[ECO "A04"]
[WhiteElo "2354"]
[BlackElo "2157"]
[Annotator "NA"]
[PlyCount "85"]
[EventDate "2018.08.05"]
[EventType "swiss"]
[EventCountry "ROU"]
[SourceTitle "playchess.com"]
[Source "ChessBase"]
[SourceQuality "1"]
[TimeControl "40/5400+30:1800+30"]

1. Nf3 {[%emt 0:09:47]} b6 {[%emt 0:00:47]} 2. g3 {[%emt 0:04:20]} Bb7 {[%emt 0:00:16]} 3. Bg2 {[%emt 0:00:06]} d6 {[%emt 0:00:19]} 4. O-O {[%emt 0:01:09]} Nd7 {[%emt 0:00:53]} 5. b4 {[%emt 0:08:16]} a5 {[%emt 0:04:33]} 6. b5 {[%emt 0:00:40]} Ngf6 {[%emt 0:00:39]} 7. Bb2 {[%emt 0:08:28]} g6 {[%emt 0:02:11]} 8. Nd4 {[%emt 0:03:01]} Bxg2 {[%emt 0:02:18]} 9. Kxg2 {[%emt 0:00:08]} Nb8 {[%emt 0:00:29]} 10. e4 {[%emt 0:08:43]} e5 {[%emt 0:00:48]} 11. Nc6 {[%emt 0:08:37]} Nxc6 {[%emt 0:02:53]} 12. bxc6 {[%emt 0:01:00]} Bg7 {[%emt 0:00:15]} 13. d4 {[%emt 0:06:44]} exd4 {[%emt 0:00:53]} 14. Bxd4 {[%emt 0:00:44]} O-O {[%emt 0:00:07]} 15. Nc3 {[%emt 0:00:28]} Qe8 {[%emt 0:00:26]} 16. Qf3 {[%emt 0:03:10]} Qe6 {[%emt 0:04:11]} 17. Nd5 {[%emt 0:02:47]} Nxd5 {[%emt 0:01:06]} 18. exd5 {[%emt 0:00:26]} Qf5 {[%emt 0:00:09]} 19. Qxf5 {[%emt 0:03:54]} gxf5 {[%emt 0:00:25]} 20. Bxg7 {[%emt 0:00:15]} Kxg7 {[%emt 0:00:01]} 21. a4 {[%emt 0:00:21]} Rae8 {[%emt 0:00:12]} 22. Rfe1 {[%emt 0:01:54]} Kf6 {[%emt 0:01:13]} 23. Kf3 {[%emt 0:11:45]} Re5 {[%emt 0:05:53]} 24. Rxe5 {[%emt 0:00:08]} dxe5 {[%emt 0:00:48]} 25. Re1 {[%emt 0:02:02]} Rd8 {[%emt 0:01:22]} 26. c4 {[%emt 0:00:19]} Rg8 {[%emt 0:00:11]} 27. h3 {[%emt 0:00:08]} h5 {[%emt 0:04:04]} 28. Re2 {[%emt 0:02:01]} Rh8 {[%emt 0:02:26]} 29. c5 {[%emt 0:07:57]} bxc5 {[%emt 0:00:09]} 30. Rc2 {[%emt 0:00:09]} Ke7 {[%emt 0:00:21]} 31. Rxc5 {[%emt 0:00:20]} Ra8 {[%emt 0:00:34]} 32. Rb5 {[%emt 0:01:28]} Kd6 {[%emt 0:00:07]} 33. h4 {[%emt 0:02:41]} Rg8 {[%emt 0:01:13]} 34. Rxa5 {[%emt 0:00:40]} Rg4 {[%emt 0:00:05]} 35. Ra8 {[%emt 0:00:53]} Kxd5 {[%emt 0:00:11]} 36. Rh8 {[%emt 0:01:11]} Rxa4 {[%emt 0:00:06]} 37. Rxh5 {[%emt 0:00:03]} Ra3+ {[%emt 0:00:17]} 38. Kg2 {[%emt 0:00:37]} Ke6 {[%emt 0:00:56]} 39. Rh6+ {[%emt 0:00:06]} Ke7 {[%emt 0:00:13]} 40. Rh5 {[%emt 0:00:00]} Kf6 {[%emt 0:00:00]} 41. Rh8 {[%emt 0:17:10]} Rc3 {[%emt 0:15:44]} 42. h5 {[%emt 0:00:28]} Kg7 43. Re8 1-0

[Event "11th Arad Open 2018"]
[Site "Arad"]
[Date "2018.08.10"]
[Round "7"]
[White "Posedaru, Bogdan"]
[Black "Ursan, Petru-Sebastian"]
[Result "1-0"]
[ECO "B06"]
[WhiteElo "2326"]
[BlackElo "2147"]
[Annotator "NA"]
[PlyCount "77"]
[EventDate "2018.08.05"]
[EventType "swiss"]
[EventCountry "ROU"]
[SourceTitle "playchess.com"]
[Source "ChessBase"]
[SourceQuality "1"]
[TimeControl "40/5400+30:1800+30"]

1. d4 {[%emt 0:00:00]} g6 {[%emt 0:00:00]} 2. e4 {[%emt 0:00:00]} Bg7 {[%emt 0:00:00]} 3. Nf3 {[%emt 0:00:00]} d6 {[%emt 0:00:24]} 4. Nc3 {[%emt 0:00:00]} a6 {[%emt 0:00:57]} 5. a4 {[%emt 0:00:11]} Nf6 {[%emt 0:00:37]} 6. Be2 {[%emt 0:00:08]} O-O {[%emt 0:00:12]} 7. O-O {[%emt 0:00:06]} e5 {[%emt 0:11:12]} 8. dxe5 {[%emt 0:01:11]} dxe5 {[%emt 0:01:13]} 9. Bg5 {[%emt 0:21:33]} Nbd7 {[%emt 0:08:31]} 10. Qd2 {[%emt 0:03:40]} c6 {[%emt 0:03:27]} 11. a5 {[%emt 0:13:18]} Nc5 {[%emt 0:15:23]} 12. Qe3 {[%emt 0:03:20]} Qe7 {[%emt 0:00:56]} 13. h3 {[%emt 0:03:17]} Ne6 {[%emt 0:08:34]} 14. Bh4 {[%emt 0:00:37]} Qc5 {[%emt 0:01:25]} 15. Qxc5 {[%emt 0:07:40]} Nxc5 {[%emt 0:01:56]} 16. Nd2 {[%emt 0:00:04]} Ne6 {[%emt 0:08:15]} 17. Na4 {[%emt 0:05:20]} Nd4 {[%emt 0:02:24]} 18. Bd3 {[%emt 0:00:08]} Be6 {[%emt 0:02:34]} 19. Rfd1 {[%emt 0:00:50]} h6 {[%emt 0:04:34]} 20. Nc5 {[%emt 0:02:19]} g5 {[%emt 0:01:54]} 21. Bg3 {[%emt 0:00:14]} Nd7 {[%emt 0:01:47]} 22. Nxd7 {[%emt 0:08:58]} Bxd7 {[%emt 0:00:06]} 23. Nc4 {[%emt 0:02:59]} Rfe8 {[%emt 0:03:07]} 24. Nd6 {[%emt 0:02:54]} Re7 {[%emt 0:01:12]} 25. Nxb7 {[%emt 0:00:44]} Bxh3 {[%emt 0:00:11]} 26. Nc5 {[%emt 0:00:20]} Bc8 {[%emt 0:00:07]} 27. c3 {[%emt 0:01:48]} Ne6 {[%emt 0:00:19]} 28. Na4 {[%emt 0:00:03]} Rb8 {[%emt 0:05:14]} 29. Bc4 {[%emt 0:00:45]} Rd7 {[%emt 0:00:46]} 30. Rxd7 {[%emt 0:03:00]} Bxd7 {[%emt 0:00:07]} 31. Bxa6 {[%emt 0:00:48]} Ra8 {[%emt 0:03:47]} 32. Nb6 {[%emt 0:00:38]} Rxa6 {[%emt 0:00:29]} 33. Nxd7 {[%emt 0:00:04]} Ra7 {[%emt 0:00:22]} 34. Nxe5 {[%emt 0:00:29]} Nc5 {[%emt 0:01:09]} 35. Nxc6 {[%emt 0:00:18]} Ra6 {[%emt 0:00:14]} 36. Nb4 {[%emt 0:01:31]} Ra8 {[%emt 0:00:43]} 37. f3 {[%emt 0:01:01]} Nb3 {[%emt 0:00:39]} 38. Ra3 {[%emt 0:00:04]} Nxa5 {[%emt 0:00:10]} 39. Bc7 {[%emt 0:00:20]} 1-0

[Event "11th Arad Open 2018"]
[Site "Arad"]
[Date "2018.08.10"]
[Round "7"]
[White "Banzea, Alexandru-Bogdan"]
[Black "Secheres, Adrian-Simion"]
[Result "1/2-1/2"]
[ECO "B31"]
[WhiteElo "2313"]
[BlackElo "2407"]
[Annotator "NA"]
[PlyCount "26"]
[EventDate "2018.08.05"]
[EventType "swiss"]
[EventCountry "ROU"]
[SourceTitle "playchess.com"]
[Source "ChessBase"]
[SourceQuality "1"]
[TimeControl "40/5400+30:1800+30"]

1. e4 {[%emt 0:00:00]} c5 {[%emt 0:00:00]} 2. Nf3 {[%emt 0:00:00]} Nc6 {[%emt 0:00:25]} 3. Bb5 {[%emt 0:00:11]} g6 {[%emt 0:00:33]} 4. Bxc6 {[%emt 0:00:17]} bxc6 {[%emt 0:00:15]} 5. O-O {[%emt 0:00:09]} Bg7 {[%emt 0:00:08]} 6. Re1 {[%emt 0:00:04]} Nh6 {[%emt 0:00:45]} 7. c3 {[%emt 0:00:15]} O-O {[%emt 0:00:14]} 8. d4 {[%emt 0:00:12]} cxd4 {[%emt 0:00:10]} 9. cxd4 {[%emt 0:00:04]} d5 {[%emt 0:00:13]} 10. e5 {[%emt 0:00:08]} f6 {[%emt 0:00:22]} 11. e6 {[%emt 0:00:36]} Nf5 {[%emt 0:14:09]} 12. Bf4 {[%emt 0:10:30]} Nd6 {[%emt 0:15:32]} 13. Nc3 {[%emt 0:10:31]} Ne4 {[%emt 0:14:33]} 1/2-1/2

[Event "11th Arad Open 2018"]
[Site "Arad"]
[Date "2018.08.10"]
[Round "7"]
[White "Vasiesiu, Victor"]
[Black "Zaim, Marian"]
[Result "1-0"]
[ECO "B31"]
[WhiteElo "2297"]
[BlackElo "2084"]
[Annotator "NA"]
[PlyCount "97"]
[EventDate "2018.08.05"]
[EventType "swiss"]
[EventCountry "ROU"]
[SourceTitle "playchess.com"]
[Source "ChessBase"]
[SourceQuality "1"]
[TimeControl "40/5400+30:1800+30"]

1. e4 {[%emt 0:00:00]} c5 {[%emt 0:00:00]} 2. Nf3 {[%emt 0:00:00]} Nc6 {[%emt 0:00:00]} 3. Bb5 {[%emt 0:00:06]} g6 {[%emt 0:01:52]} 4. Bxc6 {[%emt 0:00:08]} bxc6 {[%emt 0:00:58]} 5. O-O {[%emt 0:00:14]} d6 {[%emt 0:03:08]} 6. d4 {[%emt 0:05:03]} cxd4 {[%emt 0:06:56]} 7. Qxd4 {[%emt 0:00:06]} e5 {[%emt 0:01:18]} 8. Qd3 {[%emt 0:11:26]} Be7 {[%emt 0:10:38]} 9. Rd1 {[%emt 0:01:26]} Qc7 {[%emt 0:05:55]} 10. c4 {[%emt 0:12:22]} Kf8 {[%emt 0:07:01]} 11. b3 {[%emt 0:10:11]} Kg7 {[%emt 0:05:41]} 12. Bb2 {[%emt 0:03:22]} f6 {[%emt 0:02:06]} 13. Ba3 {[%emt 0:02:42]} c5 {[%emt 0:04:02]} 14. Nc3 {[%emt 0:00:18]} Bb7 {[%emt 0:06:33]} 15. Ne1 {[%emt 0:08:36]} Nh6 {[%emt 0:00:58]} 16. Nc2 {[%emt 0:00:08]} Nf7 {[%emt 0:00:54]} 17. Ne3 {[%emt 0:00:24]} Rhe8 {[%emt 0:08:15]} 18. Ncd5 {[%emt 0:01:18]} Qc8 {[%emt 0:03:21]} 19. f3 {[%emt 0:04:13]} Bf8 {[%emt 0:03:12]} 20. Bb2 {[%emt 0:04:03]} Bc6 {[%emt 0:01:51]} 21. Rf1 {[%emt 0:02:49]} Be7 {[%emt 0:05:48]} 22. f4 {[%emt 0:01:18]} Bd8 {[%emt 0:00:21]} 23. f5 {[%emt 0:04:21]} g5 {[%emt 0:01:41]} 24. Qe2 {[%emt 0:01:23]} Qd7 {[%emt 0:06:01]} 25. Rad1 {[%emt 0:00:55]} Nh6 {[%emt 0:02:46]} 26. h4 {[%emt 0:02:25]} gxh4 {[%emt 0:01:36]} 27. Qh5 {[%emt 0:00:32]} Nf7 {[%emt 0:01:06]} 28. Ng4 {[%emt 0:01:47]} Bxd5 {[%emt 0:01:14]} 29. Rxd5 {[%emt 0:00:27]} Rf8 {[%emt 0:03:05]} 30. Bc1 {[%emt 0:01:53]} Kh8 {[%emt 0:00:58]} 31. Qxh4 {[%emt 0:02:10]} Qe7 {[%emt 0:00:09]} 32. Rf3 {[%emt 0:03:33]} Rg8 {[%emt 0:00:23]} 33. Rh3 {[%emt 0:01:50]} Rg7 {[%emt 0:00:28]} 34. Bh6 {[%emt 0:00:58]} Nxh6 {[%emt 0:00:47]} 35. Nxh6 {[%emt 0:00:15]} Ba5 {[%emt 0:01:19]} 36. Qh5 {[%emt 0:05:32]} Rf8 {[%emt 0:00:44]} 37. Qd1 {[%emt 0:03:22]} Bc7 {[%emt 0:00:46]} 38. Rdd3 {[%emt 0:01:53]} Bb8 {[%emt 0:01:51]} 39. Rdg3 {[%emt 0:00:49]} Qb7 {[%emt 0:02:03]} 40. Rxg7 {[%emt 0:00:00]} Qxg7 {[%emt 0:00:00]} 41. Qh5 {[%emt 0:16:53]} Bc7 {[%emt 0:17:27]} 42. Kh2 {[%emt 0:01:50]} Qg5 {[%emt 0:03:58]} 43. Qxg5 {[%emt 0:00:42]} fxg5 {[%emt 0:00:01]} 44. Ng4 {[%emt 0:00:15]} Kg7 {[%emt 0:01:54]} 45. Rh6 {[%emt 0:00:19]} a5 {[%emt 0:05:12]} 46. Re6 {[%emt 0:01:44]} Rf7 {[%emt 0:02:33]} 47. Kg3 {[%emt 0:05:53]} h5 {[%emt 0:02:17]} 48. Ne3 {[%emt 0:00:13]} Rf6 {[%emt 0:00:04]} 49. Rxf6 {[%emt 0:00:10]} 1-0

[Event "11th Arad Open 2018"]
[Site "Arad"]
[Date "2018.08.10"]
[Round "7"]
[White "Velickovic, Sasa"]
[Black "Geher, Koppany"]
[Result "1-0"]
[ECO "B40"]
[WhiteElo "2290"]
[BlackElo "2137"]
[Annotator "NA"]
[PlyCount "95"]
[EventDate "2018.08.05"]
[EventType "swiss"]
[EventCountry "ROU"]
[SourceTitle "playchess.com"]
[Source "ChessBase"]
[SourceQuality "1"]
[TimeControl "40/5400+30:1800+30"]

1. e4 {[%emt 0:00:00]} c5 {[%emt 0:00:00]} 2. Nf3 {[%emt 0:00:00]} e6 {[%emt 0:00:00]} 3. Qe2 {[%emt 0:00:16]} Nc6 {[%emt 0:01:00]} 4. g3 {[%emt 0:00:09]} Be7 {[%emt 0:04:52]} 5. Bg2 {[%emt 0:00:52]} d5 {[%emt 0:00:15]} 6. d3 {[%emt 0:00:11]} Nf6 {[%emt 0:00:09]} 7. O-O {[%emt 0:00:35]} b5 {[%emt 0:01:58]} 8. Re1 {[%emt 0:03:15]} O-O {[%emt 0:00:10]} 9. e5 {[%emt 0:03:28]} Nd7 {[%emt 0:00:02]} 10. h4 {[%emt 0:00:11]} Qc7 {[%emt 0:01:18]} 11. Bf4 {[%emt 0:00:11]} Bb7 {[%emt 0:01:35]} 12. Nbd2 {[%emt 0:01:34]} Rfc8 {[%emt 0:00:15]} 13. c3 {[%emt 0:02:05]} Qd8 {[%emt 0:00:07]} 14. Nf1 {[%emt 0:02:21]} a5 {[%emt 0:00:40]} 15. N1h2 {[%emt 0:03:42]} Ba6 {[%emt 0:04:02]} 16. Ng5 {[%emt 0:11:18]} h6 {[%emt 0:03:16]} 17. Ngf3 {[%emt 0:06:57]} Rab8 {[%emt 0:03:23]} 18. h5 {[%emt 0:05:41]} b4 {[%emt 0:04:02]} 19. Ng4 {[%emt 0:03:20]} bxc3 {[%emt 0:08:28]} 20. bxc3 {[%emt 0:00:07]} Bf8 {[%emt 0:00:04]} 21. Qc2 {[%emt 0:07:34]} Rb6 {[%emt 0:07:41]} 22. Rab1 {[%emt 0:11:34]} Rcb8 {[%emt 0:00:31]} 23. Bf1 {[%emt 0:00:11]} Rxb1 {[%emt 0:23:13]} 24. Rxb1 {[%emt 0:00:08]} Rxb1 {[%emt 0:00:06]} 25. Qxb1 {[%emt 0:00:05]} Qb6 {[%emt 0:00:06]} 26. Qc2 {[%emt 0:00:35]} Bb7 {[%emt 0:05:45]} 27. Be2 {[%emt 0:02:09]} Na7 {[%emt 0:15:36]} 28. d4 {[%emt 0:15:54]} cxd4 {[%emt 0:02:52]} 29. cxd4 {[%emt 0:00:07]} Nc6 {[%emt 0:02:48]} 30. Be3 {[%emt 0:00:07]} Ba6 {[%emt 0:02:20]} 31. Bxa6 {[%emt 0:03:55]} Qxa6 {[%emt 0:00:01]} 32. Qd2 {[%emt 0:04:23]} Qb5 {[%emt 0:03:26]} 33. Kg2 {[%emt 0:06:28]} Qb1 {[%emt 0:00:39]} 34. Qc3 {[%emt 0:00:45]} Qb5 {[%emt 0:04:38]} 35. Qc1 {[%emt 0:02:33]} Qc4 {[%emt 0:01:15]} 36. Bxh6 {[%emt 0:01:01]} gxh6 {[%emt 0:00:44]} 37. Nxh6+ {[%emt 0:00:07]} Kh7 {[%emt 0:00:35]} 38. Qf4 {[%emt 0:00:23]} Bxh6 {[%emt 0:00:27]} 39. Qxf7+ {[%emt 0:00:11]} Kh8 {[%emt 0:00:06]} 40. Qxd7 {[%emt 0:00:00]} Nxd4 {[%emt 0:00:00]} 41. Qe8+ {[%emt 0:01:36]} Kg7 {[%emt 0:01:32]} 42. Qg6+ {[%emt 0:00:08]} Kf8 {[%emt 0:01:40]} 43. Qxh6+ {[%emt 0:00:05]} Ke7 {[%emt 0:01:58]} 44. Qf6+ {[%emt 0:00:35]} Kd7 {[%emt 0:00:07]} 45. Qf7+ {[%emt 0:02:25]} Kd8 {[%emt 0:00:09]} 46. h6 {[%emt 0:02:06]} Nxf3 {[%emt 0:00:14]} 47. h7 {[%emt 0:02:49]} Nh4+ {[%emt 0:01:21]} 48. Kh2 {[%emt 0:00:14]} 1-0

[Event "11th Arad Open 2018"]
[Site "Arad"]
[Date "2018.08.10"]
[Round "7"]
[White "Patrascu, Catalin-Lucian"]
[Black "Creanga, Robert-Ionut"]
[Result "1-0"]
[ECO "B31"]
[WhiteElo "2286"]
[BlackElo "2069"]
[Annotator "NA"]
[PlyCount "57"]
[EventDate "2018.08.05"]
[EventType "swiss"]
[EventCountry "ROU"]
[SourceTitle "playchess.com"]
[Source "ChessBase"]
[SourceQuality "1"]
[TimeControl "40/5400+30:1800+30"]

1. e4 {[%emt 0:00:00]} c5 {[%emt 0:00:00]} 2. Nf3 {[%emt 0:00:07]} Nc6 {[%emt 0:00:00]} 3. Bb5 {[%emt 0:00:03]} g6 {[%emt 0:00:00]} 4. Bxc6 {[%emt 0:00:03]} dxc6 {[%emt 0:00:04]} 5. d3 {[%emt 0:00:18]} Bg7 {[%emt 0:00:15]} 6. h3 {[%emt 0:00:12]} Nf6 {[%emt 0:00:08]} 7. Nc3 {[%emt 0:00:08]} O-O {[%emt 0:00:46]} 8. Bf4 {[%emt 0:01:06]} Re8 {[%emt 0:11:38]} 9. Qd2 {[%emt 0:09:15]} e5 {[%emt 0:01:51]} 10. Bxe5 {[%emt 0:12:20]} Nxe4 {[%emt 0:00:40]} 11. Nxe4 {[%emt 0:00:20]} Bxe5 {[%emt 0:00:20]} 12. Nxe5 {[%emt 0:02:50]} Rxe5 {[%emt 0:00:16]} 13. O-O-O {[%emt 0:01:16]} b6 {[%emt 0:11:35]} 14. g4 {[%emt 0:16:23]} f5 {[%emt 0:08:56]} 15. f4 {[%emt 0:08:07]} Re8 {[%emt 0:04:44]} 16. Ng3 {[%emt 0:07:43]} Qf6 {[%emt 0:12:55]} 17. h4 {[%emt 0:01:55]} Be6 {[%emt 0:08:57]} 18. gxf5 {[%emt 0:08:54]} Bxf5 {[%emt 0:01:34]} 19. h5 {[%emt 0:02:17]} Re7 {[%emt 0:02:27]} 20. hxg6 {[%emt 0:08:51]} hxg6 {[%emt 0:02:41]} 21. Rh6 {[%emt 0:06:28]} Rf8 {[%emt 0:08:08]} 22. Rdh1 {[%emt 0:01:28]} Kf7 {[%emt 0:01:31]} 23. Qg2 {[%emt 0:04:03]} Rg8 {[%emt 0:02:47]} 24. Kb1 {[%emt 0:02:51]} Re6 {[%emt 0:07:03]} 25. a3 {[%emt 0:01:12]} Ke8 {[%emt 0:02:39]} 26. Rh7 {[%emt 0:01:04]} Kf8 {[%emt 0:09:19]} 27. Rxa7 {[%emt 0:00:58]} b5 {[%emt 0:00:46]} 28. Ra8+ {[%emt 0:02:38]} Kg7 {[%emt 0:00:16]} 29. Nh5+ {Kf8} 1-0

[Event "11th Arad Open 2018"]
[Site "Arad"]
[Date "2018.08.10"]
[Round "7"]
[White "Gilea, Lucian"]
[Black "Baciu, Anca-Otilia"]
[Result "1-0"]
[ECO "D63"]
[WhiteElo "2279"]
[BlackElo "2096"]
[Annotator "NA"]
[PlyCount "77"]
[EventDate "2018.08.05"]
[EventType "swiss"]
[EventCountry "ROU"]
[SourceTitle "playchess.com"]
[Source "ChessBase"]
[SourceQuality "1"]
[TimeControl "40/5400+30:1800+30"]

1. d4 {[%emt 0:00:00]} Nf6 {[%emt 0:00:00]} 2. c4 {[%emt 0:00:00]} e6 {[%emt 0:00:00]} 3. Nc3 {[%emt 0:00:50]} d5 {[%emt 0:00:16]} 4. Bg5 {[%emt 0:00:29]} Nbd7 {[%emt 0:01:08]} 5. Nf3 {[%emt 0:01:23]} Be7 {[%emt 0:00:08]} 6. e3 {[%emt 0:02:14]} O-O {[%emt 0:00:46]} 7. Bd3 {[%emt 0:00:18]} b6 {[%emt 0:01:59]} 8. cxd5 {[%emt 0:06:12]} exd5 {[%emt 0:02:17]} 9. Rc1 {[%emt 0:02:10]} Bb7 {[%emt 0:01:27]} 10. Bf4 {[%emt 0:02:49]} c5 {[%emt 0:02:52]} 11. h3 {[%emt 0:01:27]} a6 {[%emt 0:04:27]} 12. dxc5 {[%emt 0:00:49]} Bxc5 {[%emt 0:02:09]} 13. O-O {[%emt 0:00:47]} b5 {[%emt 0:06:11]} 14. Bf5 {[%emt 0:03:52]} g6 {[%emt 0:15:03]} 15. Bxd7 {[%emt 0:05:01]} Qxd7 {[%emt 0:00:08]} 16. Na4 {[%emt 0:00:21]} bxa4 {[%emt 0:07:42]} 17. Rxc5 {[%emt 0:00:09]} Rfc8 {[%emt 0:00:12]} 18. Rxc8+ {[%emt 0:01:25]} Rxc8 {[%emt 0:00:10]} 19. Nd4 {[%emt 0:00:11]} Ne4 {[%emt 0:04:53]} 20. f3 {[%emt 0:02:16]} Nc5 {[%emt 0:02:27]} 21. Bh6 {[%emt 0:04:06]} Qe7 {[%emt 0:00:52]} 22. Re1 {[%emt 0:05:12]} f6 {[%emt 0:07:56]} 23. h4 {[%emt 0:03:23]} Qd6 {[%emt 0:05:31]} 24. Bf4 {[%emt 0:07:10]} Qb6 {[%emt 0:01:14]} 25. Re2 {[%emt 0:02:30]} a5 {[%emt 0:03:56]} 26. Rc2 {[%emt 0:03:23]} Kf7 {[%emt 0:01:43]} 27. Kh2 {[%emt 0:02:20]} Ba6 {[%emt 0:05:37]} 28. Ne2 {[%emt 0:07:06]} Rd8 {[%emt 0:06:21]} 29. Qd4 {[%emt 0:01:30]} Bc4 {[%emt 0:04:33]} 30. Nc3 {[%emt 0:03:56]} Qb4 {[%emt 0:02:29]} 31. a3 {[%emt 0:05:17]} Qb3 {[%emt 0:00:16]} 32. Rd2 {[%emt 0:02:28]} Nb7 {[%emt 0:04:13]} 33. g4 {[%emt 0:02:08]} Nd6 {[%emt 0:02:18]} 34. g5 {[%emt 0:00:16]} Ne8 {[%emt 0:00:29]} 35. Qa7+ {[%emt 0:00:51]} Kg8 {[%emt 0:00:46]} 36. Ne4 {[%emt 0:06:56]} f5 {[%emt 0:00:53]} 37. Nf6+ {[%emt 0:00:15]} Nxf6 {[%emt 0:00:19]} 38. gxf6 {[%emt 0:00:06]} d4 {[%emt 0:01:16]} 39. Qg7# 1-0